{"text_format":"3","workbook":"xlsx","n_sheets":1,"sheets":["Osobisty budżet miesięczny"],"read":"whole","date_system":"1900"}

{"sheet":"Osobisty budżet miesięczny","index":0,"n_rows":62,"n_cols":10,"rows_kept":62,"merged":[[0,1,0,9],[2,1,4,1],[2,2,2,3],[2,7,2,8],[3,2,3,3],[3,7,3,8],[4,2,4,3],[4,6,4,8],[5,1,7,1],[5,2,5,3],[5,7,5,8],[6,2,6,3],[6,7,6,8],[7,2,7,3],[7,6,7,8],[20,6,20,9],[21,1,21,4],[29,6,29,9],[31,1,31,4],[36,6,36,9],[38,1,38,4],[42,6,42,9],[44,1,44,4],[48,6,48,9],[52,1,52,4],[55,6,55,9]]}
[null,"Osobisty budżet miesięczny"]
[]
[null,"PLANOWANY PRZYCHÓD MIESIĘCZNY","Przychód 1",null,{"v":2500,"d":"2,500 zł"},null,"SUMA WYDATKÓW PLANOWANYCH ","(Przychód planowany minus wydatki)",null,{"$f":"SUM(C21,C31,C38,C44,C52,C62,H20,H29,H36,H42,H48,H55)","v":{"v":2060,"d":"2,060 zł"}}]
[null,null,"Przychód dodatkowy",null,{"v":500,"d":"500 zł"},null,"SUMA WYDATKÓW RZECZYWISTYCH ","(Przychód rzeczywisty minus wydatki)",null,{"$f":"SUM(D21,D31,D38,D44,D52,D62,I20,I29,I36,I42,I48,I55)","v":{"v":2040,"d":"2,040 zł"}}]
[null,null,"Suma przychodu miesięcznego",null,{"$f":"SUM(E3:E4)","v":{"v":3000,"d":"3,000 zł"}},null,"Różnica sum wydatków",null,null,{"$f":"SUM(E21,E31,E38,E44,E52,E62,J20,J29,J36,J42,J48,J55)","v":{"v":20,"d":"20 zł"}}]
[null,"RZECZYWISTY PRZYCHÓD MIESIĘCZNY","Przychód 1",null,{"v":2500,"d":"2,500 zł"},null,"SALDO PLANOWANE","(Przychód planowany minus wydatki)",null,{"$f":"E5-J3","v":{"v":940,"d":"940 zł"}}]
[null,null,"Przychód dodatkowy",null,{"v":500,"d":"500 zł"},null,"SALDO RZECZYWISTE","(Przychód rzeczywisty minus wydatki)",null,{"$f":"E8-J4","v":{"v":960,"d":"960 zł"}}]
[null,null,"Suma przychodu miesięcznego",null,{"$f":"SUM(E6:E7)","v":{"v":3000,"d":"3,000 zł"}},null,"RÓŻNICA SALD (rzeczywiste minus planowane)",null,null,{"$f":"J7-J6","v":{"v":20,"d":"20 zł"}}]
[]
[null,"UTRZYMANIE DOMU","Koszt planowany","Koszt rzeczywisty","Różnica",null,"ROZRYWKA","Koszt planowany","Koszt rzeczywisty","Różnica"]
[null,"Spłata kredytu lub czynsz",{"v":1500,"d":"1,500 zł"},{"v":1400,"d":"1,400 zł"},{"$f":"Utrzymanie_domu[[#This Row],[Koszt planowany]]-Utrzymanie_domu[[#This Row],[Koszt rzeczywisty]]","v":{"v":100,"d":"100 zł"}},null,"Filmy wideo/DVD",{"v":0,"d":"0 zł"},{"v":50,"d":"50 zł"},{"$f":"Rozrywka[[#This Row],[Koszt planowany]]-Rozrywka[[#This Row],[Koszt rzeczywisty]]","v":{"v":-50,"d":"-50 zł"}}]
[null,"Telefon",{"v":60,"d":"60 zł"},{"v":100,"d":"100 zł"},{"$f":"Utrzymanie_domu[[#This Row],[Koszt planowany]]-Utrzymanie_domu[[#This Row],[Koszt rzeczywisty]]","v":{"v":-40,"d":"-40 zł"}},null,"Płyty CD",null,null,{"$f":"Rozrywka[[#This Row],[Koszt planowany]]-Rozrywka[[#This Row],[Koszt rzeczywisty]]","v":{"v":0,"d":"0 zł"}}]
[null,"Energia elektryczna",{"v":50,"d":"50 zł"},{"v":60,"d":"60 zł"},{"$f":"Utrzymanie_domu[[#This Row],[Koszt planowany]]-Utrzymanie_domu[[#This Row],[Koszt rzeczywisty]]","v":{"v":-10,"d":"-10 zł"}},null,"Kino",null,null,{"$f":"Rozrywka[[#This Row],[Koszt planowany]]-Rozrywka[[#This Row],[Koszt rzeczywisty]]","v":{"v":0,"d":"0 zł"}}]
[null,"Gaz",{"v":200,"d":"200 zł"},{"v":180,"d":"180 zł"},{"$f":"Utrzymanie_domu[[#This Row],[Koszt planowany]]-Utrzymanie_domu[[#This Row],[Koszt rzeczywisty]]","v":{"v":20,"d":"20 zł"}},null,"Koncerty",null,null,{"$f":"Rozrywka[[#This Row],[Koszt planowany]]-Rozrywka[[#This Row],[Koszt rzeczywisty]]","v":{"v":0,"d":"0 zł"}}]
[null,"Woda i ścieki",null,null,{"$f":"Utrzymanie_domu[[#This Row],[Koszt planowany]]-Utrzymanie_domu[[#This Row],[Koszt rzeczywisty]]","v":{"v":0,"d":"0 zł"}},null,"Imprezy sportowe",null,null,{"$f":"Rozrywka[[#This Row],[Koszt planowany]]-Rozrywka[[#This Row],[Koszt rzeczywisty]]","v":{"v":0,"d":"0 zł"}}]
[null,"Telewizja kablowa",null,null,{"$f":"Utrzymanie_domu[[#This Row],[Koszt planowany]]-Utrzymanie_domu[[#This Row],[Koszt rzeczywisty]]","v":{"v":0,"d":"0 zł"}},null,"Teatr",null,null,{"$f":"Rozrywka[[#This Row],[Koszt planowany]]-Rozrywka[[#This Row],[Koszt rzeczywisty]]","v":{"v":0,"d":"0 zł"}}]
[null,"Wywóz śmieci",null,null,{"$f":"Utrzymanie_domu[[#This Row],[Koszt planowany]]-Utrzymanie_domu[[#This Row],[Koszt rzeczywisty]]","v":{"v":0,"d":"0 zł"}},null,"Inne",null,null,{"$f":"Rozrywka[[#This Row],[Koszt planowany]]-Rozrywka[[#This Row],[Koszt rzeczywisty]]","v":{"v":0,"d":"0 zł"}}]
[null,"Konserwacja lub naprawy",null,null,{"$f":"Utrzymanie_domu[[#This Row],[Koszt planowany]]-Utrzymanie_domu[[#This Row],[Koszt rzeczywisty]]","v":{"v":0,"d":"0 zł"}},null,"Inne",null,null,{"$f":"Rozrywka[[#This Row],[Koszt planowany]]-Rozrywka[[#This Row],[Koszt rzeczywisty]]","v":{"v":0,"d":"0 zł"}}]
[null,"Materiały",null,null,{"$f":"Utrzymanie_domu[[#This Row],[Koszt planowany]]-Utrzymanie_domu[[#This Row],[Koszt rzeczywisty]]","v":{"v":0,"d":"0 zł"}},null,"Inne",null,null,{"$f":"Rozrywka[[#This Row],[Koszt planowany]]-Rozrywka[[#This Row],[Koszt rzeczywisty]]","v":{"v":0,"d":"0 zł"}}]
[null,"Inne",null,null,{"$f":"Utrzymanie_domu[[#This Row],[Koszt planowany]]-Utrzymanie_domu[[#This Row],[Koszt rzeczywisty]]","v":{"v":0,"d":"0 zł"}},null,"Suma",{"$f":"SUBTOTAL(109,Rozrywka[Koszt planowany])","v":{"v":0,"d":"0 zł"}},{"$f":"SUBTOTAL(109,Rozrywka[Koszt rzeczywisty])","v":{"v":50,"d":"50 zł"}},{"$f":"SUBTOTAL(109,Rozrywka[Różnica])","v":{"v":-50,"d":"-50 zł"}}]
[null,"Suma",{"$f":"SUBTOTAL(109,Utrzymanie_domu[Koszt planowany])","v":{"v":1810,"d":"1,810 zł"}},{"$f":"SUBTOTAL(109,Utrzymanie_domu[Koszt rzeczywisty])","v":{"v":1740,"d":"1,740 zł"}},{"$f":"SUBTOTAL(109,Utrzymanie_domu[Różnica])","v":{"v":70,"d":"70 zł"}}]
[{"$nulls":6},"POŻYCZKI","Koszt planowany","Koszt rzeczywisty","Różnica"]
[null,"TRANSPORT","Koszt planowany","Koszt rzeczywisty","Różnica",null,"Osobiste",null,null,{"$f":"Pożyczki[[#This Row],[Koszt planowany]]-Pożyczki[[#This Row],[Koszt rzeczywisty]]","v":{"v":0,"d":"0 zł"}}]
[null,"Opłata za samochód",{"v":250,"d":"250 zł"},{"v":250,"d":"250 zł"},{"$f":"Transport[[#This Row],[Koszt planowany]]-Transport[[#This Row],[Koszt rzeczywisty]]","v":{"v":0,"d":"0 zł"}},null,"Kredyt studencki",null,null,{"$f":"Pożyczki[[#This Row],[Koszt planowany]]-Pożyczki[[#This Row],[Koszt rzeczywisty]]","v":{"v":0,"d":"0 zł"}}]
[null,"Opłaty za taksówkę/autobus",null,null,{"$f":"Transport[[#This Row],[Koszt planowany]]-Transport[[#This Row],[Koszt rzeczywisty]]","v":{"v":0,"d":"0 zł"}},null,"Karta kredytowa",null,null,{"$f":"Pożyczki[[#This Row],[Koszt planowany]]-Pożyczki[[#This Row],[Koszt rzeczywisty]]","v":{"v":0,"d":"0 zł"}}]
[null,"Ubezpieczenie",null,null,{"$f":"Transport[[#This Row],[Koszt planowany]]-Transport[[#This Row],[Koszt rzeczywisty]]","v":{"v":0,"d":"0 zł"}},null,"Karta kredytowa",null,null,{"$f":"Pożyczki[[#This Row],[Koszt planowany]]-Pożyczki[[#This Row],[Koszt rzeczywisty]]","v":{"v":0,"d":"0 zł"}}]
[null,"Licencjonowanie",null,null,{"$f":"Transport[[#This Row],[Koszt planowany]]-Transport[[#This Row],[Koszt rzeczywisty]]","v":{"v":0,"d":"0 zł"}},null,"Karta kredytowa",null,null,{"$f":"Pożyczki[[#This Row],[Koszt planowany]]-Pożyczki[[#This Row],[Koszt rzeczywisty]]","v":{"v":0,"d":"0 zł"}}]
[null,"Paliwo",null,null,{"$f":"Transport[[#This Row],[Koszt planowany]]-Transport[[#This Row],[Koszt rzeczywisty]]","v":{"v":0,"d":"0 zł"}},null,"Inne",null,null,{"$f":"Pożyczki[[#This Row],[Koszt planowany]]-Pożyczki[[#This Row],[Koszt rzeczywisty]]","v":{"v":0,"d":"0 zł"}}]
[null,"Konserwacja",null,null,{"$f":"Transport[[#This Row],[Koszt planowany]]-Transport[[#This Row],[Koszt rzeczywisty]]","v":{"v":0,"d":"0 zł"}},null,"Suma",{"$f":"SUBTOTAL(109,Pożyczki[Koszt planowany])","v":{"v":0,"d":"0 zł"}},{"$f":"SUBTOTAL(109,Pożyczki[Koszt rzeczywisty])","v":{"v":0,"d":"0 zł"}},{"$f":"SUBTOTAL(109,Pożyczki[Różnica])","v":{"v":0,"d":"0 zł"}}]
[null,"Inne",null,null,{"$f":"Transport[[#This Row],[Koszt planowany]]-Transport[[#This Row],[Koszt rzeczywisty]]","v":{"v":0,"d":"0 zł"}}]
[null,"Suma",{"$f":"SUBTOTAL(109,Transport[Koszt planowany])","v":{"v":250,"d":"250 zł"}},{"$f":"SUBTOTAL(109,Transport[Koszt rzeczywisty])","v":{"v":250,"d":"250 zł"}},{"$f":"SUBTOTAL(109,Transport[Różnica])","v":{"v":0,"d":"0 zł"}},null,"PODATKI","Koszt planowany","Koszt rzeczywisty","Różnica"]
[{"$nulls":6},"Państwowe",null,null,{"$f":"Podatki[[#This Row],[Koszt planowany]]-Podatki[[#This Row],[Koszt rzeczywisty]]","v":{"v":0,"d":"0 zł"}}]
[null,"UBEZPIECZENIE","Koszt planowany","Koszt rzeczywisty","Różnica",null,"Wojewódzkie",null,null,{"$f":"Podatki[[#This Row],[Koszt planowany]]-Podatki[[#This Row],[Koszt rzeczywisty]]","v":{"v":0,"d":"0 zł"}}]
[null,"Dom",null,null,{"$f":"Ubezpieczenie[[#This Row],[Koszt planowany]]-Ubezpieczenie[[#This Row],[Koszt rzeczywisty]]","v":{"v":0,"d":"0 zł"}},null,"Lokalne",null,null,{"$f":"Podatki[[#This Row],[Koszt planowany]]-Podatki[[#This Row],[Koszt rzeczywisty]]","v":{"v":0,"d":"0 zł"}}]
[null,"Zdrowie",null,null,{"$f":"Ubezpieczenie[[#This Row],[Koszt planowany]]-Ubezpieczenie[[#This Row],[Koszt rzeczywisty]]","v":{"v":0,"d":"0 zł"}},null,"Inne",null,null,{"$f":"Podatki[[#This Row],[Koszt planowany]]-Podatki[[#This Row],[Koszt rzeczywisty]]","v":{"v":0,"d":"0 zł"}}]
[null,"Życie",null,null,{"$f":"Ubezpieczenie[[#This Row],[Koszt planowany]]-Ubezpieczenie[[#This Row],[Koszt rzeczywisty]]","v":{"v":0,"d":"0 zł"}},null,"Suma",{"$f":"SUBTOTAL(109,Podatki[Koszt planowany])","v":{"v":0,"d":"0 zł"}},{"$f":"SUBTOTAL(109,Podatki[Koszt rzeczywisty])","v":{"v":0,"d":"0 zł"}},{"$f":"SUBTOTAL(109,Podatki[Różnica])","v":{"v":0,"d":"0 zł"}}]
[null,"Inne",null,null,{"$f":"Ubezpieczenie[[#This Row],[Koszt planowany]]-Ubezpieczenie[[#This Row],[Koszt rzeczywisty]]","v":{"v":0,"d":"0 zł"}}]
[null,"Suma",{"$f":"SUBTOTAL(109,Ubezpieczenie[Koszt planowany])","v":{"v":0,"d":"0 zł"}},{"$f":"SUBTOTAL(109,Ubezpieczenie[Koszt rzeczywisty])","v":{"v":0,"d":"0 zł"}},{"$f":"SUBTOTAL(109,Ubezpieczenie[Różnica])","v":{"v":0,"d":"0 zł"}},null,"OSZCZĘDNOŚCI LUB INWESTYCJE","Koszt planowany","Koszt rzeczywisty","Różnica"]
[{"$nulls":6},"Fundusz emerytalny",null,null,{"$f":"Oszczędności_lub_inwestycje[[#This Row],[Koszt planowany]]-Oszczędności_lub_inwestycje[[#This Row],[Koszt rzeczywisty]]","v":{"v":0,"d":"0 zł"}}]
[null,"ŻYWNOŚĆ","Koszt planowany","Koszt rzeczywisty","Różnica",null,"Fundusz inwestycyjny",null,null,{"$f":"Oszczędności_lub_inwestycje[[#This Row],[Koszt planowany]]-Oszczędności_lub_inwestycje[[#This Row],[Koszt rzeczywisty]]","v":{"v":0,"d":"0 zł"}}]
[null,"Artykuły spożywcze",null,null,{"$f":"Żywność[[#This Row],[Koszt planowany]]-Żywność[[#This Row],[Koszt rzeczywisty]]","v":{"v":0,"d":"0 zł"}},null,"Inne",null,null,{"$f":"Oszczędności_lub_inwestycje[[#This Row],[Koszt planowany]]-Oszczędności_lub_inwestycje[[#This Row],[Koszt rzeczywisty]]","v":{"v":0,"d":"0 zł"}}]
[null,"Restauracje",null,null,{"$f":"Żywność[[#This Row],[Koszt planowany]]-Żywność[[#This Row],[Koszt rzeczywisty]]","v":{"v":0,"d":"0 zł"}},null,"Suma",{"$f":"SUBTOTAL(109,Oszczędności_lub_inwestycje[Koszt planowany])","v":{"v":0,"d":"0 zł"}},{"$f":"SUBTOTAL(109,Oszczędności_lub_inwestycje[Koszt rzeczywisty])","v":{"v":0,"d":"0 zł"}},{"$f":"SUBTOTAL(109,Oszczędności_lub_inwestycje[Różnica])","v":{"v":0,"d":"0 zł"}}]
[null,"Inne",null,null,{"$f":"Żywność[[#This Row],[Koszt planowany]]-Żywność[[#This Row],[Koszt rzeczywisty]]","v":{"v":0,"d":"0 zł"}}]
[null,"Suma",{"$f":"SUBTOTAL(109,Żywność[Koszt planowany])","v":{"v":0,"d":"0 zł"}},{"$f":"SUBTOTAL(109,Żywność[Koszt rzeczywisty])","v":{"v":0,"d":"0 zł"}},{"$f":"SUBTOTAL(109,Żywność[Różnica])","v":{"v":0,"d":"0 zł"}},null,"PREZENTY I DOTACJE","Koszt planowany","Koszt rzeczywisty","Różnica"]
[{"$nulls":6},"Cele charytatywne 1",null,null,{"$f":"Prezenty_i_datki[[#This Row],[Koszt planowany]]-Prezenty_i_datki[[#This Row],[Koszt rzeczywisty]]","v":{"v":0,"d":"0 zł"}}]
[null,"ZWIERZĘTA","Koszt planowany","Koszt rzeczywisty","Różnica",null,"Cele charytatywne 2",null,null,{"$f":"Prezenty_i_datki[[#This Row],[Koszt planowany]]-Prezenty_i_datki[[#This Row],[Koszt rzeczywisty]]","v":{"v":0,"d":"0 zł"}}]
[null,"Żywność",null,null,{"$f":"Zwierzęta_domowe[[#This Row],[Koszt planowany]]-Zwierzęta_domowe[[#This Row],[Koszt rzeczywisty]]","v":{"v":0,"d":"0 zł"}},null,"Cele charytatywne 3",null,null,{"$f":"Prezenty_i_datki[[#This Row],[Koszt planowany]]-Prezenty_i_datki[[#This Row],[Koszt rzeczywisty]]","v":{"v":0,"d":"0 zł"}}]
[null,"Artykuły medyczne",null,null,{"$f":"Zwierzęta_domowe[[#This Row],[Koszt planowany]]-Zwierzęta_domowe[[#This Row],[Koszt rzeczywisty]]","v":{"v":0,"d":"0 zł"}},null,"Suma",{"$f":"SUBTOTAL(109,Prezenty_i_datki[Koszt planowany])","v":{"v":0,"d":"0 zł"}},{"$f":"SUBTOTAL(109,Prezenty_i_datki[Koszt rzeczywisty])","v":{"v":0,"d":"0 zł"}},{"$f":"SUBTOTAL(109,Prezenty_i_datki[Różnica])","v":{"v":0,"d":"0 zł"}}]
[null,"Pielęgnacja",null,null,{"$f":"Zwierzęta_domowe[[#This Row],[Koszt planowany]]-Zwierzęta_domowe[[#This Row],[Koszt rzeczywisty]]","v":{"v":0,"d":"0 zł"}}]
[null,"Zabawki",null,null,{"$f":"Zwierzęta_domowe[[#This Row],[Koszt planowany]]-Zwierzęta_domowe[[#This Row],[Koszt rzeczywisty]]","v":{"v":0,"d":"0 zł"}},null,"USŁUGI PRAWNICZE","Koszt planowany","Koszt rzeczywisty","Różnica"]
[null,"Inne",null,null,{"$f":"Zwierzęta_domowe[[#This Row],[Koszt planowany]]-Zwierzęta_domowe[[#This Row],[Koszt rzeczywisty]]","v":{"v":0,"d":"0 zł"}},null,"Adwokat",null,null,{"$f":"Usługi_prawnicze[[#This Row],[Koszt planowany]]-Usługi_prawnicze[[#This Row],[Koszt rzeczywisty]]","v":{"v":0,"d":"0 zł"}}]
[null,"Suma",{"$f":"SUBTOTAL(109,Zwierzęta_domowe[Koszt planowany])","v":{"v":0,"d":"0 zł"}},{"$f":"SUBTOTAL(109,Zwierzęta_domowe[Koszt rzeczywisty])","v":{"v":0,"d":"0 zł"}},{"$f":"SUBTOTAL(109,Zwierzęta_domowe[Różnica])","v":{"v":0,"d":"0 zł"}},null,"Alimenty",null,null,{"$f":"Usługi_prawnicze[[#This Row],[Koszt planowany]]-Usługi_prawnicze[[#This Row],[Koszt rzeczywisty]]","v":{"v":0,"d":"0 zł"}}]
[{"$nulls":6},"Opłaty sądowe",null,null,{"$f":"Usługi_prawnicze[[#This Row],[Koszt planowany]]-Usługi_prawnicze[[#This Row],[Koszt rzeczywisty]]","v":{"v":0,"d":"0 zł"}}]
[null,"WYDATKI OSOBISTE","Koszt planowany","Koszt rzeczywisty","Różnica",null,"Inne",null,null,{"$f":"Usługi_prawnicze[[#This Row],[Koszt planowany]]-Usługi_prawnicze[[#This Row],[Koszt rzeczywisty]]","v":{"v":0,"d":"0 zł"}}]
[null,"Artykuły medyczne",null,null,{"$f":"Wydatki_osobiste[[#This Row],[Koszt planowany]]-Wydatki_osobiste[[#This Row],[Koszt rzeczywisty]]","v":{"v":0,"d":"0 zł"}},null,"Suma",{"$f":"SUBTOTAL(109,Usługi_prawnicze[Koszt planowany])","v":{"v":0,"d":"0 zł"}},{"$f":"SUBTOTAL(109,Usługi_prawnicze[Koszt rzeczywisty])","v":{"v":0,"d":"0 zł"}},{"$f":"SUBTOTAL(109,Usługi_prawnicze[Różnica])","v":{"v":0,"d":"0 zł"}}]
[null,"Włosy/paznokcie",null,null,{"$f":"Wydatki_osobiste[[#This Row],[Koszt planowany]]-Wydatki_osobiste[[#This Row],[Koszt rzeczywisty]]","v":{"v":0,"d":"0 zł"}}]
[null,"Ubrania",null,null,{"$f":"Wydatki_osobiste[[#This Row],[Koszt planowany]]-Wydatki_osobiste[[#This Row],[Koszt rzeczywisty]]","v":{"v":0,"d":"0 zł"}}]
[null,"Pralnia chemiczna",null,null,{"$f":"Wydatki_osobiste[[#This Row],[Koszt planowany]]-Wydatki_osobiste[[#This Row],[Koszt rzeczywisty]]","v":{"v":0,"d":"0 zł"}}]
[null,"Klub sportowy",null,null,{"$f":"Wydatki_osobiste[[#This Row],[Koszt planowany]]-Wydatki_osobiste[[#This Row],[Koszt rzeczywisty]]","v":{"v":0,"d":"0 zł"}}]
[null,"Opłaty na cele organizacji",null,null,{"$f":"Wydatki_osobiste[[#This Row],[Koszt planowany]]-Wydatki_osobiste[[#This Row],[Koszt rzeczywisty]]","v":{"v":0,"d":"0 zł"}}]
[null,"Inne",null,null,{"$f":"Wydatki_osobiste[[#This Row],[Koszt planowany]]-Wydatki_osobiste[[#This Row],[Koszt rzeczywisty]]","v":{"v":0,"d":"0 zł"}}]
[null,"Suma",{"$f":"SUBTOTAL(109,Wydatki_osobiste[Koszt planowany])","v":{"v":0,"d":"0 zł"}},{"$f":"SUBTOTAL(109,Wydatki_osobiste[Koszt rzeczywisty])","v":{"v":0,"d":"0 zł"}},{"$f":"SUBTOTAL(109,Wydatki_osobiste[Różnica])","v":{"v":0,"d":"0 zł"}}]